Cogmind - Beta 13 @@@ ROGUE MODE // 2024.08.03 @ 11:26:08 Player: btracker Result: Destroyed by S-10 Pest with Light Assault Rifle Performance ------------- Evolutions (1) 500 Regions Visited (3) 600 Robots Destroyed (19) 95 Value Destroyed (476) 476 Prototype IDs (0) 0 Alien Tech Used (0) 0 Bonus (0) 0 TOTAL SCORE: 1671 Bonus ------- None Cogmind --------- Core Integrity 0/400 Matter 300/300 Energy 250/250 System Corruption 0% Temperature Cool (0) Movement Walking (120) Location -9/Materials Parts ------- > --- POWER (2) -------- Ion Engine > --- PROPULSION (2) --- Aluminum Leg Aluminum Leg > --- UTILITY (2) ------ Small Storage Unit Light Armor Plating > --- WEAPON (3) ------- Hammer Heavy Hammer > --- INVENTORY (8) ---- Heat Sink Utility Shielding Hardened Light Armor Plating Peak State ------------ > --- POWER ------------ Improved Ion Engine Light Nuclear Core > --- PROPULSION ------- Wheel Wheel > --- UTILITY ---------- Small Storage Unit Medium Matter Pod > --- WEAPON ----------- Beam Rifle Particle Gun Heavy Assault Rifle > --- INVENTORY -------- Ion Engine Targeting Computer Utility Shielding Small Laser [Rating: 15] Favorites ----------- Power Ion Engine Engine Ion Engine Power Core Light Nuclear Core Propulsion Wheel Leg Aluminum Leg Wheel Wheel Flight Unit Flight Unit Utility Small Storage Unit Storage Small Storage Unit Protection Hardened Light Armor Plating Weapon Heavy Assault Rifle Energy Gun Small Laser Ballistic Gun Heavy Assault Rifle Impact Weapon Heavy Hammer Build | -11 -10 -10 -9 ------- Run | Yrd Mat Min Mat Slots Evolved 2 | . . . 2 Power 1 | . . . 1 Propulsion . | . . . . Utility . | . . . . Weapon 1 | . . . 1 Parts Attached 25 | 8 1 4 12 Power 5 | 1 . 1 3 Engine 3 | 1 . 1 1 Core 2 | . . . 2 Reactor . | . . . . Propulsion 7 | 4 . . 3 Treads . | . . . . Leg 4 | 2 . . 2 Wheel 2 | 2 . . . Hover . | . . . . Flight 1 | . . . 1 Utility 4 | 1 1 . 2 Device . | . . . . Storage 2 | 1 1 . . Processor . | . . . . Hackware . | . . . . Protection 2 | . . . 2 Artifact . | . . . . Weapon 9 | 2 . 3 4 Energy Gun 5 | 1 . 2 2 Energy Cannon . | . . . . Ballistic Gun 2 | 1 . 1 . Ballistic Cannon . | . . . . Launcher . | . . . . Special Weapon . | . . . . Impact Weapon 2 | . . . 2 Slashing Weapon . | . . . . Piercing Weapon . | . . . . Special Melee Weapon . | . . . . Unidentified Prototypes . | . . . . Parts Lost 10 | . . . 10 Power 2 | . . . 2 Propulsion 3 | . . . 3 Utility 1 | . . . 1 Weapon 4 | . . . 4 Highest Loss Streak 9 | . . . 9 To Critical Strikes . | . . . . Average Slot Usage (%) 75 | . 97 100 54 Engine 8 | . 14 14 3 Leg 4 | . . . 7 Wheel 14 | . 28 28 2 Storage 20 | . 25 28 13 Protection 3 | . . . 5 Energy Gun 8 | . 14 14 4 Ballistic Gun 7 | . 14 14 2 Impact Weapon 6 | . . . 11 Naked Turns . | . . . . Heaviest Build 28 | 12 14 20 28 Greatest Support 20 | 20 20 20 20 Greatest Overweight (x) 7 | 1 . . 7 Average Overweight (x) . | . . . . Largest Inventory Capacity 8 | 8 8 8 8 Average Capacity 7 | 7 8 8 8 Most Carried 6 | 2 1 6 5 Average Carried 2 | . . 4 2 Final Capacity 8 | 8 8 8 8 Final Carried 6 | . . 6 3 Class Distribution -------------------- 92% | Mutant 6% | Scavenger-Gunner Dominant Class ---------------- Mutant | -10/Materials Mutant | -10/Mines Mutant | -9/Materials Resources | -11 -10 -10 -9 ----------- Run | Yrd Mat Min Mat Matter Collected 557 | 241 . 221 95 Remotely . | . . . . Salvage Created 569 | . . 149 420 Parts 38 | . . 16 22 Haulers Intercepted 1 | . . . 1 Recyclers Shooed 1 | . . . 1 Parts Field Recycled . | . . . . Retrieved Matter . | . . . . Parts Self-Destructed . | . . . . Prevented . | . . . . Kills | -11 -10 -10 -9 ------- Run | Yrd Mat Min Mat Combat Hostiles Destroyed 16 | . . 6 10 Melee 4 | . . . 4 Guns 10 | . . 6 4 AOE 1 | . . . 1 Classes Destroyed 5 | . . 2 3 Hauler 1 | . . . 1 Recycler 1 | . . . 1 Watcher 1 | . . . 1 Swarmer 7 | . . 4 3 Grunt 9 | . . 2 7 Best Kill Streak 4 | . . 3 4 Combat Bots Only 4 | . . 3 4 Max Kills in Single Turn 1 | . . 1 1 Gunslinging . | . . . . Exploded 1 | . . . 1 Melee 1 | . . . 1 Uniques/NPCs Destroyed . | . . . . Combat | -11 -10 -10 -9 -------- Run | Yrd Mat Min Mat Hostile Shots Fired 171 | . . 28 143 Missed 50 | . . 8 42 Damage Taken 1327 | . . 173 1154 Core 438 | . . 38 400 Absorbed by Shields . | . . . . Core Remaining (%) 92 | 100 . 84 . Volleys Fired 38 | . . 16 22 Largest 3 | . . 2 3 Hottest 144 | . . 88 144 Shots Fired 72 | . . 32 40 Gun 72 | . . 32 40 Cannon . | . . . . Launcher . | . . . . Special . | . . . . Kinetic 30 | . . 16 14 Thermal 34 | . . 16 18 Explosive . | . . . . Electromagnetic 8 | . . . 8 Robot Hit Streak 5 | . . 3 5 Robot Miss Streak 7 | . . 5 7 Penetration Max . | . . . . Secondary Targets 2 | . . 1 1 Max Gunslinging Chain 1 | . . 1 1 Shots Hit Robots 40 | . . 14 26 Core Hits 29 | . . 8 21 Critical Kills . | . . . . Critical Parts Destroyed 1 | . . . 1 Critical Strikes 1 | . . . 1 Smash 1 | . . . 1 Melee Attacks 15 | . . . 15 Impact 15 | . . . 15 Slashing . | . . . . Piercing . | . . . . Sneak Attacks 4 | . . . 4 Combat Hostiles . | . . . . Follow-up Attacks 2 | . . . 2 Damage Inflicted 1235 | . . 192 1043 Guns 450 | . . 192 258 Cannons . | . . . . Explosions 297 | . . . 297 Melee 475 | . . . 475 Ramming 13 | . . . 13 Kinetic 162 | . . 104 58 Thermal 478 | . . 88 390 Explosive . | . . . . Electromagnetic 107 | . . . 107 Impact 475 | . . . 475 Slashing . | . . . . Piercing . | . . . . Highest Corruption . | . . . . Average Corruption . | . . . . Corruption Purged . | . . . . Corruption Blocked . | . . . . Overload Shots . | . . . . Overflow Damage 185 | . . . 185 Projectiles . | . . . . Explosions 111 | . . . 111 Melee 74 | . . . 74 Knockbacks 2 | . . . 2 Impact 2 | . . . 2 Kinetic . | . . . . Secondary . | . . . . Self-Inflicted Damage 144 | . . . 144 Shots 2 | . . . 2 Rammed 12 | . . . 12 Targets Rammed 12 | . . . 12 Kicked . | . . . . Crushed . | . . . . Highest Temperature 553 | . . 132 553 Average Temperature 174 | . . 47 275 Received Heat Transfer 315 | . . 33 282 Effects 13 | . . . 13 Shutdowns 4 | . . . 4 Energy Bleed 1 | . . . 1 Interference 3 | . . . 3 Matter Decay 2 | . . . 2 Short Circuit 2 | . . . 2 Damage (major) 1 | . . . 1 Siege Activations . | . . . . Robots Corrupted . | . . . . Combat Hostiles . | . . . . Parts Fried 2 | . . . 2 Impact Corruptions 3 | . . . 3 Robots Melted . | . . . . Combat Hostiles . | . . . . Parts Melted 1 | . . . 1 Heat Transferred 633 | . . 211 422 Parts Sabotaged . | . . . . Parts Stolen . | . . . . Parts Stripped . | . . . . Power Chain Reactions . | . . . . Alert | -11 -10 -10 -9 ------- Run | Yrd Mat Min Mat Peak Influence 342 | . . 195 342 Initial 76 | . . . 76 Average 122 | . . 123 191 Maximum Alert Level 1 | . . . 1 Low Security (%) 79 | 100 100 100 52 Level 1 20 | . . . 47 Level 2 . | . . . . Level 3 . | . . . . Level 4 . | . . . . Level 5 . | . . . . High Security . | . . . . Max Security . | . . . . Squads Dispatched 3 | . . . 3 Investigation 2 | . . . 2 Extermination . | . . . . Reinforcement 1 | . . . 1 Assault . | . . . . Garrison . | . . . . Intercept . | . . . . Searches Triggered . | . . . . Construction Impeded . | . . . . Haulers Reinforced . | . . . . Active Scanning Responses . | . . . . Cargo Convoy Interrupts . | . . . . Stealth | -11 -10 -10 -9 --------- Run | Yrd Mat Min Mat Distress Signals 2 | . . . 2 Communications Jammed . | . . . . Distress Signals . | . . . . Times Spotted 25 | . . 6 19 Peak Tracking Total 6 | . . 3 6 Tactical Retreats 2 | . . 1 1 Traps | -11 -10 -10 -9 ------- Run | Yrd Mat Min Mat Traps Triggered 1 | . . . 1 Indirectly . | . . . . Trap Hack Attempts . | . . . . Triggered . | . . . . Disarmed . | . . . . Reprogrammed . | . . . . Reused . | . . . . Traps Extracted . | . . . . Installed . | . . . . Triggered . | . . . . Machines | -11 -10 -10 -9 ---------- Run | Yrd Mat Min Mat Machines Disabled 5 | . . . 5 Max in Single Turn 2 | . . . 2 Machines Repaired . | . . . . Machines Dismantled . | . . . . Machines Sabotaged . | . . . . Overloaded Fab Kills . | . . . . Hacking | -11 -10 -10 -9 --------- Run | Yrd Mat Min Mat Machines Accessed 2 | . . . 2 Terminals 1 | . . . 1 Fabricators . | . . . . Repair Stations . | . . . . Recycling Units . | . . . . Scanalyzers 1 | . . . 1 Garrison Access . | . . . . Total Hacks 5 | . . . 5 Successful 2 | . . . 2 Failed 3 | . . . 3 Catastrophic . | . . . . Database Lockouts . | . . . . Manual . | . . . . Terminals 2 | . . . 2 Fabricators . | . . . . Repair Stations . | . . . . Recycling Units . | . . . . Scanalyzers 3 | . . . 3 Garrison Access . | . . . . Terminal Hacks . | . . . . Fabricator Hacks . | . . . . Repair Station Hacks . | . . . . Recycling Unit Hacks . | . . . . Scanalyzer 2 | . . . 2 Insert Component 1 | . . . 1 Analyze 1 | . . . 1 Garrison Access Hacks . | . . . . Unauthorized Hacks . | . . . . Terminals . | . . . . Fabricators . | . . . . Repair Stations . | . . . . Recycling Units . | . . . . Scanalyzers . | . . . . Garrison Access . | . . . . Data Cores Recovered . | . . . . Used . | . . . . Hacking Detections 1 | . . . 1 Full Trace Events 1 | . . . 1 Feedback Events . | . . . . Feedback Blocked . | . . . . Robot Schematics Acquired . | . . . . Robots Built . | . . . . Authchips . | . . . . Time . | . . . . Total Robot Build Rating . | . . . . Part Schematics Acquired 1 | . . . 1 Parts Built . | . . . . Authchips . | . . . . Time . | . . . . Total Part Build Rating . | . . . . Parts Repaired . | . . . . Time . | . . . . Parts Recycled . | . . . . Recycled Matter . | . . . . Retrieved Matter . | . . . . Retrieved Components . | . . . . Parts Scanalyzed 1 | . . . 1 Part Schematics Acquired 1 | . . . 1 Parts Damaged . | . . . . Bothacking | -11 -10 -10 -9 ------------ Run | Yrd Mat Min Mat Used RIF Installer . | . . . . Robots Hacked . | . . . . Non-combat . | . . . . Combat . | . . . . Robot Hacks Applied . | . . . . Relay Couplers Released . | . . . . Fabnet Peak Effective % . | . . . . Robots Rewired . | . . . . Allies Hacked . | . . . . Hacks Repelled . | . . . . Allies | -11 -10 -10 -9 -------- Run | Yrd Mat Min Mat Total Allies . | . . . . Largest Group . | . . . . Highest-Rated Group . | . . . . Highest-Rated Ally . | . . . . Total Orders . | . . . . Ally Attacks . | . . . . Total Damage . | . . . . Kills . | . . . . Allies Corrupted . | . . . . Allies Melted . | . . . . Intel | -11 -10 -10 -9 ------- Run | Yrd Mat Min Mat Robot Analysis Total . | . . . . Derelict Logs Recovered . | . . . . Drone Launches . | . . . . Drone Recoveries . | . . . . Exploration | -11 -10 -10 -9 ------------- Run | Yrd Mat Min Mat Turns Passed 1073 | 216 46 352 459 Spaces Moved 663 | 61 55 358 189 Core 75 | 18 . . 57 Treads . | . . . . Legs 104 | . . . 104 Wheels 472 | 43 55 358 16 Hover . | . . . . Flight 12 | . . . 12 Fastest Speed 50 | 50 80 80 95 Average Speed 96 | 80 80 80 138 Slowest Speed 400 | 100 80 80 400 Overloaded Moves . | . . . . Propulsion Burnouts . | . . . . Robots Hopped . | . . . . Cave-ins Triggered . | . . . . Exploration Rate (%) 27 | 6 13 74 17 Regions Visited 3 Branch Regions 1 Pre-discovered Areas . | . . . . Known Exits Taken . | . . . . Unknown Exits Taken 3 | 1 1 1 . Scrap Searched 1 | . . 1 . Spaces Dug . | . . . . Terrain Destroyed 58 | . . . 58 Melee . | . . . . Projectile . | . . . . AOE 58 | . . . 58 Terrain Rammed . | . . . . Walls Destroyed . | . . . . Machines Disabled . | . . . . Actions | -11 -10 -10 -9 --------- Run | Yrd Mat Min Mat Total 981 | 228 56 391 306 Wait 199 | 150 . 4 45 Move 660 | 60 54 357 189 Hop . | . . . . Pick Up 27 | 8 1 8 10 Fast Attach . | . . . . Attach 20 | 8 1 . 11 Detach 1 | . . . 1 Swap 5 | . . 4 1 Drop 7 | 2 . 2 3 Fire 38 | . . 16 22 Melee 12 | . . . 12 Ram 12 | . . . 12 Kick . | . . . . Crush . | . . . . Escape Stasis . | . . . . Rewire . | . . . . Trap . | . . . . Miscellaneous . | . . . . Route ------- -11/Scrapyard -10/Materials -10/Mines -9/Materials History --------- Turn | Location | Event 11 | -11/Scrapyard | Discovered new exit (range 14) 217 | -11/Scrapyard | Entered Materials 234 | -10/Materials | Discovered new exit (range 13) 263 | -10/Materials | Entered Mines 279 | -10/Mines | Met a Derelict bent on vengeance 305 | -10/Mines | Build established: Mutant 328 | -10/Mines | Joined a pair of Derelicts in attacking an 0b10 outpost 607 | -10/Mines | Discovered new exit (range 11) 615 | -10/Mines | Entered Materials 615 | -9/Materials | Evolved 2 slots: Power x1, Weapon x1 737 | -9/Materials | Core integrity fell below 50% 767 | -9/Materials | Lost 9 parts (2p3n1u3w) 800 | -9/Materials | Core integrity fell below 20% 1074 | -9/Materials | Destroyed by S-10 Pest with Light Assault Rifle Last Messages --------------- Hammer follow-up attack on A-02 Transporter. Destroyed Weight Redist. System. A-02 Transporter system corrupted by crushing effect. A-02 Transporter system terminally corrupted. Ion Engine fried. Material Compactor disabled. R-06 Scavenger collects Com. Wheel. R-06 Scavenger collects Sml. Laser. R-06 Scavenger collects Corrupted Med. Storage Unit. R-06 Scavenger collects Sml. Storage Unit. Connecting with Terminal... ALERT: Suspicious activity at Terminal M010. Dispatching Investigation squad. K-01 Serf collects debris. W-16 Scout sends out distress signal. K-01 Serf collects debris. Hammer follow-up attack on S-10 Pest. K-01 Serf collects debris. Map ----- +----------------------------------------------------+ | # # #????????????????????? | | + # #????????????????????? | | # # #????????????????????? | | " # # #????????????????????? | | "% "# ######+####????????????????????? | | " % ## ##### #??????????????????????? | | """"""""### #??????????????????????? | | # #?# #??????????????????????? | | # ##?# """ #??????????????????????? | | #########??# """"" #??????????????????????? | | ???????????# ! """"" #??????????????????????? | | ????######?#!%! """ #??????????????????????? | | ????# # ! ![""" #??????????????????????? | | ????# # % #??????????????????????? | | ????#""" + = % #??????????????????????? | | ????#"Y # "" #??????????????????????? | | ????#""" # """"" #??????????????????????? | | ????# ?# """"" ##?????????????????????? | | ????######?# """"" "#?????????????????????? | | ???????????# % """ "#?????????????????????? | | ???????????# % "#?????????????????????? | | ???????????# % T#?????????????????????? | | ?########### """ "#?????????????????????? | | ?# ## """"" "#?????????????????????? | | ?#= ## """" "#?????????????????????? | | ?# # """"" @#########??????????????? | | ?# # """ u ???????? | | ?# + ss ???????? | | ?# # s ???????? | | ?# # k ##### ######+######## ????????? | | ?# # ######+###???? ???????????????? | | ?# # # #????? ?????????????? | | ?########## #*[! """ #??????? ????????????? | | ??????????# +[ """ + ""????? #???????????? | | ??????????# # """ # """?????????????????? | | ??????????# # # ?????????????????? | | ??????????# #"S """ #? ????????????????? | | ??????????######""" """ #?? ???????????????? | | ???????????????# "" """ #???#" "??????????????? | | ???????????????# #????"T"??????????????? | | ???????????????##########?????????????????????? | | ??????????????????????????????????????????????? | | ??????????????????????????????????????????????? | | ??????????????????????????????????????????????? | | ??????????????????????????????????????????????? | | ??????????????????????????????????????????????? | | ??????????????????????????????????????????????? | | ??????????????????????????????????????????????? | | ??????????????????????????????????????????????? | | ??????????????????????????????????????????????? | +----------------------------------------------------+ Best States ------------- Heat Dissipation 28 Energy Generation 21 Energy Capacity 325 Matter Stores 400 Matter Capacity 400 Sight Range 16 Terrain Scan Density 10 Armor Coverage 150 Evasion (%) 50 Item Schematics ----------------- Lgt. Nuclear Core | -9/Materials | Scanalyzed Robot Schematics ------------------ None Fabricated ------------ Nothing Alien Tech Used ----------------- None Achievements -------------- None Challenges ------------ None Game ------ Seed DispersionActiveExoskeleton Manual? 0 Play Time 00:18:52 Cumulative 1.7 hours Start 2024.08.03 @ 11:09:41 End 2024.08.03 @ 11:26:08 Sessions 1 Manual Loads 0 Difficulty Rogue Special Mode None Game No. 4 Rogue 4 Adventurer 0 Explorer 0 Win Type - Total 0 Types 0/0/0/0/0/0/0/0/0 Lore% 6 Gallery% 4 Achievement% 7 Wizard Run 0 Options --------- Layout 1 ASCII 0 Keyboard 0 Movement Mouse Keybinds 0 Fullscreen 1 Font 24/Smallcaps Map View 50x35 Zoom Use 0% Tactical HUD 0 Map Filters NONE Filters NONE Steam 1 RUN: 40dc9b3a-a305-4199-acb3-15b20ccaa574